bitfinex/quotes_ETHUSD_20241022
["timestamp","ask_amount","ask_price","bid_price","bid_amount"]
[1729602359133,5.30957202,2620.3,2620.2,4.0]
[1729602359307,6.55350711,2620.3,2620.2,4.0]
[1729602360017,6.55350711,2620.3,2619.8,4.0]
[1729602360018,3.81685,2620.0,2619.8,4.0]
[1729602360423,3.81669,2620.1,2619.8,4.0]
[1729602360996,3.81664,2620.1,2619.8,4.0]
[1729602361341,3.81659,2620.2,2619.8,9.10199215]
[1729602361632,3.81662,2620.2,2619.8,5.28493215]
[1729602361834,3.81662,2620.2,2619.8,5.36126469]
[1729602362333,3.8167,2620.1,2619.8,5.36126469]
[1729602362539,3.81643,2620.3,2619.8,9.17834469]
[1729602362831,3.81661,2620.2,2619.8,5.28493215]
[1729602363037,3.81661,2620.2,2619.8,5.36126461]
[1729602363528,0.07623509,2620.5,2619.9,5.99444746]
[1729602363529,3.89239509,2620.5,2619.9,5.99444746]
[1729602363729,3.81616,2620.5,2620.0,3.89310639]
[1729602363940,3.81616,2620.5,2620.1,1.1371]
[1729602364728,3.81616,2620.5,2620.1,5.21342345]
[1729602364935,3.81616,2620.5,2620.2,0.90301435]
[1729602365630,4.99804,2620.3,2620.2,4.0]
[1729602365835,3.8165,2620.2,2619.7,1.1449]
[1729602365994,3.81698,2619.9,2619.6,3.72999541]
[1729602366198,3.81718,2619.8,2619.6,3.72999541]
[1729602366814,3.81694,2619.9,2619.6,3.72999541]
[1729602367015,3.81695,2619.9,2619.6,3.72999541]
[1729602367448,3.81708,2619.8,2619.6,3.72999541]
[1729602368543,3.81723,2619.7,2619.6,3.72999541]
[1729602369236,3.81723,2619.7,2619.6,7.72999541]
[1729602371751,3.81723,2619.7,2619.6,3.72999541]
[1729602372849,7.63425,2619.8,2619.6,3.72999541]
[1729602373142,3.81709,2619.8,2619.6,7.72999541]
[1729602374007,7.63427,2619.8,2619.6,7.72999541]
[1729602374259,3.81709,2619.8,2619.6,7.72999541]
[1729602374767,3.81723,2619.7,2619.6,7.72999541]
[1729602376766,3.81695,2619.9,2619.6,7.72999541]
[1729602377664,3.81718,2619.8,2619.6,7.72999541]
[1729602377871,3.81723,2619.7,2619.6,7.72999541]
[1729602378245,3.81723,2619.7,2619.6,3.72999541]
[1729602378462,3.81766,2619.4,2619.3,2.67504546]
[1729602378667,3.81766,2619.4,2619.3,1.50184546]
[1729602378869,3.81781,2619.3,2619.1,1.1732]
[1729602379697,3.81795,2619.2,2619.0,0.03285615]
[1729602379978,3.81795,2619.2,2619.0,0.01]
[1729602380351,3.8181,2619.1,2619.0,0.01]
[1729602381666,3.89433509,2619.1,2619.0,0.01]
[1729602382250,5.12941211,2619.1,2619.0,0.01]
[1729602383882,6.32291211,2619.1,2619.0,0.01]
[1729602384378,9.32291211,2619.1,2619.0,0.01]
[1729602384596,9.24667702,2619.1,2619.0,0.01]
[1729602385944,5.0116,2619.1,2619.0,0.01]
[1729602386148,3.8181,2619.1,2619.0,0.01]
[1729602386358,3.89433509,2619.1,2619.0,0.01]
[1729602387457,1.1309,2619.7,2619.1,1.185]
[1729602387766,3.81758,2619.5,2619.1,1.686316]
[1729602388744,3.81731,2619.7,2619.2,3.89424625]
[1729602388948,3.81731,2619.7,2619.3,3.81778]
[1729602389385,3.81716,2619.8,2619.3,3.81778]
[1729602389586,0.07623509,2619.9,2619.4,5.03285]
[1729602389803,3.81679,2620.0,2619.4,5.10911924]
[1729602389957,3.81679,2620.0,2619.5,3.81752]
[1729602390293,3.81673,2620.1,2619.7,3.81722]
[1729602390694,3.89274509,2620.2,2619.7,3.81722]
[1729602390860,3.81609,2620.5,2619.9,5.00755]
[1729602391061,3.89178509,2620.9,2620.3,3.81624]
[1729602391286,3.83812615,2621.1,2620.6,3.81591]
[1729602391609,1.1556,2621.3,2620.6,3.81591]
[1729602391610,0.07623509,2621.2,2620.6,3.81591]
[1729602391895,3.81535,2621.0,2620.5,4.96816]
[1729602392103,3.81535,2621.0,2620.5,6.18732251]
[1729602392301,3.81519,2621.1,2620.6,3.89219945]
[1729602392477,3.81519,2621.1,2620.6,3.81589]
[1729602392808,3.81519,2621.1,2620.6,3.89219946]
[1729602393107,3.81476,2621.4,2620.9,4.9833]
[1729602393304,3.81483,2621.4,2620.9,1.24420021]
[1729602393477,3.81471,2621.5,2620.9,5.82551791]
[1729602393799,3.81441,2621.7,2621.1,3.81508]
[1729602394013,3.81441,2621.7,2621.1,0.07629218]
[1729602394304,3.89082509,2621.6,2621.0,3.81533]
[1729602394518,3.89082509,2621.6,2620.9,5.41747302]
[1729602394519,3.81465,2621.5,2620.9,5.41747302]
[1729602394662,3.81483,2621.4,2620.9,2.01011791]
[1729602395284,3.81501,2621.3,2620.9,1.1679]
[1729602395494,3.81511,2621.2,2620.9,1.1679]
[1729602397220,3.81497,2621.3,2620.9,1.1679]
[1729602397584,3.81513,2621.2,2620.9,1.1679]
[1729602397793,3.81497,2621.3,2620.9,1.1679]
[1729602398521,3.8147,2621.5,2621.0,3.81523]
[1729602398675,3.8147,2621.5,2621.0,0.07629868]
[1729602399512,3.81451,2621.6,2621.1,3.81517]
[1729602399672,3.8147,2621.5,2620.9,9.27054911]
[1729602399874,3.8147,2621.5,2621.0,4.74230491]
[1729602400167,3.81491,2621.3,2621.0,0.92705491]
[1729602400506,3.81506,2621.2,2620.9,1.1679]
[1729602401213,3.81521,2621.1,2620.9,1.1679]
[1729602401419,3.81506,2621.2,2620.6,4.91161]
[1729602401584,3.81519,2621.1,2620.6,4.91161]
[1729602401788,0.07623509,2621.0,2620.2,5.31828546]
[1729602401997,3.81586,2620.7,2620.3,1.064]
[1729602402323,3.81606,2620.6,2620.3,1.064]
[1729602402529,3.81588,2620.7,2620.3,1.14032365]
[1729602403725,3.81586,2620.7,2620.3,1.064]
[1729602403926,3.81586,2620.7,2620.3,1.73807648]
[1729602404115,3.81564,2620.8,2620.3,5.47809731]
[1729602404795,3.81562,2620.8,2620.3,1.66175731]
[1729602405122,3.81559,2620.9,2620.3,1.66175731]
[1729602405322,3.81586,2620.7,2620.3,1.064]
[1729602405621,3.81607,2620.5,2620.3,1.064]
[1729602408588,3.8163,2620.4,2620.2,1.50184546]
[1729602408721,0.07623509,2620.6,2620.2,1.50184546]
[1729602408896,3.81589,2620.7,2620.2,6.02923121]
[1729602409331,7.63178,2620.7,2620.2,6.02923121]
[1729602409732,3.81592,2620.6,2620.2,2.21275121]
[1729602410533,3.81589,2620.7,2620.2,2.21275121]
[1729602410534,7.63179,2620.7,2620.2,2.21275121]
[1729602410692,0.07623509,2621.0,2620.2,2.21275121]
[1729602410693,3.81557,2620.9,2620.2,2.21275121]
[1729602410891,3.81555,2620.9,2620.4,3.81618]
[1729602411092,3.81563,2620.8,2620.4,3.8162]
[1729602411334,3.81533,2621.0,2620.5,3.81604]
[1729602411518,3.81549,2620.9,2620.5,3.81604]
[1729602412423,3.81533,2621.0,2620.5,7.63203]
[1729602412624,3.81533,2621.0,2620.5,8.56700047]
[1729602412957,3.81586,2620.7,2620.3,1.71827466]
[1729602413112,3.81601,2620.6,2620.3,1.124]
[1729602414711,3.81612,2620.5,2620.3,1.124]
[1729602417115,7.63167,2620.7,2620.3,1.124]
[1729602417355,0.0011,2823.4,2620.4,3.89251261]
[1729602417356,3.81558,2620.9,2620.4,3.89251261]
[1729602417647,3.81558,2620.9,2620.4,4.46802581]
[1729602417855,3.81563,2620.8,2620.4,0.65183581]
[1729602419432,3.81563,2620.8,2620.3,4.94035]
[1729602419433,3.81583,2620.7,2620.3,1.124]
[1729602419955,3.81565,2620.8,2620.3,4.94034]
[1729602420254,3.81562,2620.8,2620.3,1.124]
[1729602420410,3.81562,2620.8,2620.3,5.95755509]
[1729602421255,3.81583,2620.7,2620.3,2.14122509]
[1729602421452,7.63138,2620.8,2620.3,2.14122509]
[1729602421661,3.81562,2620.8,2620.3,2.14122509]
[1729602422030,7.63138,2620.8,2620.3,2.14122509]
[1729602423156,3.89206509,2620.7,2620.3,1.124]
[1729602423357,3.81621,2620.4,2620.3,1.124]
[1729602423857,3.81621,2620.4,2620.2,1.50184546]
[1729602424278,3.81621,2620.4,2620.1,4.82409541]
[1729602424279,3.81635,2620.3,2620.1,4.82409541]
[1729602425127,3.81635,2620.3,2619.9,1.0941]
[1729602425128,3.81646,2620.3,2619.9,1.0941]
[1729602425436,3.8165,2620.2,2619.9,1.50579562]
[1729602425635,3.8165,2620.2,2619.9,1.0941]
[1729602426044,3.81666,2620.1,2619.9,1.0941]
[1729602426253,3.81693,2619.9,2619.8,0.02285615]
[1729602426422,3.81693,2619.9,2619.7,1.0643]
[1729602426624,3.81708,2619.8,2619.5,1.0895]
[1729602426835,3.81708,2619.8,2619.5,1.580229]
[1729602427055,3.40735511,2620.2,2619.7,4.90664]
[1729602427056,3.8166,2620.2,2619.7,4.90664]
[1729602427672,3.81668,2620.1,2619.7,1.0895]
[1729602428766,3.81679,2620.0,2619.7,1.0895]
[1729602428976,3.81686,2620.0,2619.7,1.0895]
[1729602429681,7.63373,2620.0,2619.7,1.0895]
[1729602429969,3.81686,2620.0,2619.7,1.0895]
[1729602430172,3.81708,2619.8,2619.7,1.0895]
[1729602431841,3.81725,2619.7,2619.3,1.048]
[1729602432028,3.81725,2619.7,2619.3,1.90858654]
[1729602432631,3.8171,2619.8,2619.3,1.90858654]
[1729602432861,3.8171,2619.8,2619.3,5.72637654]
[1729602433591,3.8171,2619.8,2619.2,3.72999541]
[1729602433592,3.81744,2619.6,2619.2,3.72999541]
[1729602433735,3.81744,2619.6,2619.2,4.01497345]
[1729602433937,3.81759,2619.5,2619.2,3.72999541]
[1729602435880,3.81693,2619.9,2619.3,1.04]
[1729602436092,3.81693,2619.9,2619.4,0.07634504]
[1729602436296,3.81716,2619.8,2619.4,0.07634504]
[1729602437582,3.81724,2619.7,2619.4,0.07634504]
[1729602438571,3.81696,2619.9,2619.5,1.0929]
[1729602438750,3.81718,2619.8,2619.5,1.0929]
[1729602439556,3.81714,2619.8,2619.5,5.0929]
[1729602439756,7.63378,2620.0,2619.5,8.91041]
[1729602439968,3.81689,2620.0,2619.6,0.07633971]
[1729602440378,3.81667,2620.1,2619.6,3.89369971]
[1729602440605,3.81667,2620.1,2619.7,1.28041097]
[1729602441663,3.81667,2620.1,2619.7,5.28041097]
[1729602442065,3.8168,2620.0,2619.7,5.28041097]
[1729602444704,3.81687,2620.0,2619.7,5.28041097]
[1729602447584,3.81679,2620.0,2619.7,5.28041097]
[1729602447839,3.81701,2619.9,2619.7,4.0]
[1729602448126,3.81694,2619.9,2619.7,4.0]
[1729602448271,3.81708,2619.8,2619.7,4.0]
[1729602451203,3.81684,2620.0,2619.7,4.0]
[1729602451390,3.81698,2619.9,2619.7,4.0]
[1729602451910,3.81679,2620.1,2619.7,4.51692417]
[1729602452223,1.0848,2620.9,2620.0,1.0213]
[1729602452511,3.81564,2620.8,2620.4,1.0651]
[1729602452668,3.83827615,2621.0,2620.6,3.81588]
[1729602452669,0.02285615,2621.0,2620.6,3.81588]
[1729602452873,3.81508,2621.2,2620.8,1.0651]
[1729602453183,3.81548,2620.9,2620.8,1.0651]
[1729602453518,3.8154,2621.0,2620.8,1.0651]
[1729602454012,3.81585,2620.7,2620.5,1.0976]
[1729602454375,3.81559,2620.9,2620.5,1.0976]
[1729602454570,7.63116,2620.9,2620.6,0.07631177]
[1729602454818,3.81563,2620.8,2620.6,0.07631177]
[1729602455002,3.81557,2620.9,2620.5,1.0976]
[1729602456280,3.81557,2620.9,2620.6,0.07630876]
[1729602456779,3.81557,2620.9,2620.6,4.07630876]
[1729602457118,3.81557,2620.9,2620.6,0.07630876]
[1729602457478,3.81557,2620.9,2620.5,1.970612]
[1729602457681,3.81557,2620.9,2620.6,4.07630877]
[1729602458176,3.81557,2620.9,2620.6,5.06260585]
[1729602459815,3.81557,2620.9,2620.6,4.98629708]
[1729602460175,7.63113,2620.9,2620.6,4.98629708]
[1729602460381,7.63113,2620.9,2620.6,4.0]
[1729602461215,3.81556,2620.9,2620.6,4.07630879]
[1729602461923,3.81563,2620.8,2620.6,4.0]
[1729602462428,3.81563,2620.8,2620.6,4.07631026]
[1729602462621,3.81556,2620.9,2620.6,4.07631026]
[1729602462780,3.81556,2620.9,2620.6,5.06262249]
[1729602463419,3.81556,2620.9,2620.6,4.98631223]
[1729602463732,3.81556,2620.9,2620.6,5.06262104]
[1729602463931,3.81556,2620.9,2620.6,4.98631223]
[1729602464228,7.63114,2620.9,2620.6,4.98631223]
[1729602464406,3.81556,2620.9,2620.6,4.98631223]
[1729602464606,3.81556,2620.9,2620.6,5.06262106]
[1729602466828,3.8153,2621.1,2620.8,1.1205]
[1729602467027,3.81535,2621.0,2620.8,5.1205]
[1729602468568,3.81548,2620.9,2620.8,5.1205]
[1729602468855,3.81548,2620.9,2620.8,4.0]
[1729602470426,3.81536,2621.0,2620.8,4.0]
[1729602471066,3.81536,2621.0,2620.7,4.0]
[1729602471435,7.63084,2621.0,2620.7,4.0]
[1729602471636,3.81536,2621.0,2620.7,4.0]
[1729602475340,7.63079,2621.0,2620.7,4.0]
[1729602475654,3.81536,2621.0,2620.7,4.0]
[1729602477670,3.81521,2621.1,2620.7,4.0]
[1729602478165,0.07623509,2621.0,2620.7,4.0]
[1729602478471,3.89157509,2621.0,2620.7,4.0]
[1729602478968,3.81534,2621.0,2620.7,4.0]
[1729602479534,4.91964509,2620.9,2620.7,4.0]
[1729602479737,3.81595,2620.6,2620.2,1.0603]
[1729602480055,3.81595,2620.6,2620.2,8.87679]
[1729602480229,3.81577,2620.7,2620.2,12.69318]
[1729602480431,3.8157,2620.8,2620.4,3.81621]
[1729602480632,4.92741,2621.2,2620.5,0.07631835]
[1729602480858,4.92735,2621.2,2620.7,3.81569]
[1729602481769,3.81555,2620.9,2620.5,4.0]
[1729602481988,3.81592,2620.6,2620.5,4.0]
[1729602482676,4.89442,2620.6,2620.5,4.0]
[1729602482887,4.97065509,2620.6,2620.5,4.0]
[1729602483172,8.3780102,2620.6,2620.5,4.0]
[1729602483383,9.52116013,2620.6,2620.5,4.0]
[1729602483975,9.52116013,2620.6,2620.0,3.72999541]
[1729602483976,3.81636,2620.3,2620.0,3.72999541]
[1729602484195,3.81636,2620.3,2620.1,4.0]
[1729602484683,3.81623,2620.4,2620.1,4.0]
[1729602484864,3.89264509,2620.3,2620.1,4.0]
[1729602485054,3.89264509,2620.3,2620.0,3.72999541]
[1729602485251,4.89484,2620.1,2620.0,3.72999541]
[1729602485571,4.97107509,2620.1,2620.0,7.72999541]
[1729602485766,4.89484,2620.1,2620.0,7.72999541]
[1729602486089,4.97107509,2620.1,2619.5,1.047]
[1729602486258,3.81695,2619.9,2619.5,1.53574062]
[1729602486439,3.81695,2619.9,2619.7,4.0]
[1729602486852,0.07623509,2620.0,2619.7,4.0]
[1729602487188,3.89302509,2620.0,2619.7,4.0]
[1729602487347,3.81695,2619.9,2619.7,4.0]
[1729602487737,7.63397,2619.9,2619.7,4.0]
[1729602488063,4.92391509,2619.8,2619.7,4.0]
[1729602488465,4.84768,2619.8,2619.7,4.0]
[1729602488852,4.92391509,2619.8,2619.7,4.0]
[1729602489182,4.84768,2619.8,2619.7,4.0]
[1729602489385,4.84768,2619.8,2619.3,0.09920357]
[1729602489678,3.81725,2619.7,2619.4,4.0]
[1729602489842,3.81724,2619.7,2619.4,4.0]
[1729602490277,1.10683509,2619.8,2619.4,4.0]
[1729602490439,3.0,2620.4,2619.4,4.0]
[1729602490440,3.81675,2620.1,2619.5,1.0406]
[1729602490642,1.1021,2620.4,2619.9,1.0277]
[1729602490847,3.81609,2620.5,2620.0,3.81672]
[1729602491041,0.07623509,2620.6,2620.0,4.682891]
[1729602491253,3.81586,2620.7,2620.2,3.81647]
[1729602491444,3.89227509,2620.6,2620.0,4.682861]
[1729602491678,0.02285615,2620.8,2620.1,0.07632383]
[1729602491859,3.81533,2621.0,2620.2,5.5695]
[1729602492060,3.81595,2620.6,2620.2,5.5695]
[1729602492287,3.89196509,2620.8,2620.2,9.38592]
[1729602492582,3.8158,2620.7,2620.2,9.38592]
[1729602493696,3.8158,2620.7,2620.2,5.5695]
[1729602493986,3.89182509,2620.9,2620.4,3.81611]
[1729602494147,3.81528,2621.1,2620.7,1.0195]
[1729602494348,3.81528,2621.1,2620.7,1.09580855]
[1729602495065,3.81526,2621.1,2620.7,1.09580855]
[1729602495266,3.81545,2621.0,2620.7,1.0195]
[1729602495482,3.81572,2620.8,2620.4,5.0711]
[1729602495646,7.63145,2620.8,2620.4,5.0711]
[1729602495842,1.15203509,2620.9,2620.4,4.0]
[1729602496152,3.81577,2620.7,2620.4,4.0]
[1729602496859,4.89139,2620.9,2620.4,4.0]
[1729602497058,3.81534,2621.0,2620.5,4.29988067]
[1729602497286,3.89143509,2621.1,2620.6,4.9043]
[1729602497584,3.8152,2621.1,2620.6,8.72006]
[1729602497762,3.8152,2621.1,2620.6,4.90423]
[1729602497966,4.85271,2621.2,2620.7,3.89203782]
[1729602498271,3.81521,2621.1,2620.6,4.90423]
[1729602498595,3.81521,2621.1,2620.6,6.2170282]
[1729602499275,3.81521,2621.1,2620.7,3.81577]
[1729602499478,3.81521,2621.1,2620.7,0.07630782]
[1729602500051,3.81507,2621.2,2620.7,3.89197782]
[1729602500288,3.81504,2621.2,2620.7,0.07630782]
[1729602500470,3.81521,2621.1,2620.7,0.07630782]
[1729602501449,3.81521,2621.1,2620.7,3.89206782]
[1729602501992,3.81521,2621.1,2620.7,0.07630782]
[1729602502289,3.81521,2621.1,2620.6,6.2170982]
[1729602502486,3.81521,2621.1,2620.7,0.0763078]
[1729602503560,3.81521,2621.1,2620.6,6.2170482]
[1729602503761,3.81521,2621.1,2620.7,0.0763078]
[1729602505810,3.81513,2621.2,2620.7,3.8920378]
[1729602506491,4.49845511,2620.9,2620.4,4.0]
[1729602506798,3.81583,2620.7,2620.4,4.0]
[1729602507699,4.90668,2620.9,2620.4,4.0]
[1729602507891,4.98291509,2620.9,2620.4,4.0]
[1729602508288,4.90668,2620.9,2620.5,0.07631478]
[1729602508490,4.90668,2620.9,2620.4,7.81618]
[1729602508693,4.90668,2620.9,2620.4,4.0]
[1729602509280,3.81563,2620.8,2620.4,4.0]
[1729602511206,3.8158,2620.7,2620.4,4.0]
[1729602511406,3.89186509,2620.8,2620.4,4.0]
[1729602511607,3.81563,2620.8,2620.4,4.0]
[1729602511982,3.81579,2620.7,2620.4,4.0]
[1729602512584,3.81563,2620.8,2620.4,4.0]
[1729602513921,7.63137,2620.8,2620.4,4.0]
[1729602514217,7.70760509,2620.8,2620.4,4.0]
[1729602514420,3.81588,2620.7,2620.4,4.0]
[1729602514623,3.81594,2620.6,2620.4,4.0]
[1729602514921,3.81606,2620.5,2620.4,4.0]
[1729602515908,3.81646,2620.3,2619.9,4.76879541]
[1729602516392,3.89246509,2620.4,2619.9,4.76879541]
[1729602516716,3.81623,2620.4,2619.9,4.8451261]
[1729602517413,3.81623,2620.4,2619.9,4.76879541]
[1729602517783,3.81642,2620.3,2619.9,4.76879541]
[1729602518816,3.81642,2620.3,2619.9,4.84512534]
[1729602519024,3.81642,2620.3,2619.9,4.76879541]
[1729602519321,7.63287,2620.3,2619.9,4.76879541]
[1729602519523,3.81642,2620.3,2619.9,4.76879541]
[1729602520100,3.81642,2620.3,2619.9,4.84512741]
[1729602520522,3.81622,2620.4,2619.9,8.66203741]
[1729602520686,3.81622,2620.4,2619.9,8.58570541]
[1729602520887,4.86738,2620.5,2620.0,3.89302994]
[1729602520888,3.81616,2620.5,2620.0,3.89302994]
[1729602522341,3.81616,2620.5,2620.0,3.8167]
[1729602522560,7.22285511,2620.9,2620.2,1.0681]
[1729602522846,3.81564,2620.8,2620.3,0.07631844]
[1729602523448,7.63136,2620.8,2620.3,0.52460154]
[1729602523612,3.81564,2620.8,2620.3,0.52460154]
[1729602523941,3.81562,2620.8,2620.3,0.52460154]
[1729602524118,3.81562,2620.8,2620.2,4.88459]
[1729602525258,3.81546,2621.0,2620.4,1.0632]
[1729602525540,3.81551,2620.9,2620.4,1.0632]
[1729602526106,3.81566,2620.8,2620.4,1.0632]
[1729602528021,3.81551,2620.9,2620.4,1.0632]
[1729602528367,3.81542,2621.0,2620.5,0.07631545]
[1729602530486,3.81548,2620.9,2620.5,0.07631545]
[1729602531299,3.81548,2620.9,2620.4,1.55879254]
[1729602531590,3.81548,2620.9,2620.4,5.37499254]
[1729602531763,3.81548,2620.9,2620.5,0.53749925]
[1729602532947,3.81569,2620.8,2620.4,1.0632]
[1729602533146,3.81583,2620.7,2620.4,1.0632]
[1729602533588,7.2990902,2620.9,2620.4,1.0632]
[1729602533886,3.81598,2620.6,2620.4,1.0632]
[1729602534087,7.2991102,2620.9,2620.4,1.0632]
[1729602534381,3.81599,2620.6,2620.4,1.0632]
[1729602534879,3.81578,2620.7,2620.4,1.0632]
[1729602537362,3.81577,2620.7,2620.4,1.0632]
[1729602537560,3.81577,2620.7,2620.1,3.81664]
[1729602537561,3.81615,2620.5,2620.1,1.0591]
[1729602537760,3.81642,2620.3,2620.1,1.0591]
[1729602537989,3.81656,2620.2,2619.9,4.78909541]
[1729602538289,3.81663,2620.2,2619.9,4.78909541]
[1729602538461,3.89286509,2620.2,2619.9,4.78909541]
[1729602538852,3.81679,2620.0,2619.9,3.72999541]
[1729602539363,3.89290509,2620.1,2619.9,3.72999541]
[1729602539572,3.81667,2620.1,2619.9,3.72999541]
[1729602539777,3.89302509,2620.0,2619.7,2.52074546]
[1729602539963,4.92212509,2620.0,2619.7,1.50184546]
[1729602540164,3.81702,2619.9,2619.7,1.50184546]
[1729602540594,3.81708,2619.8,2619.7,1.50184546]
[1729602540797,3.81723,2619.7,2619.6,0.02285615]
[1729602540952,3.81749,2619.6,2619.2,1.0323]
[1729602541151,7.63453,2619.7,2619.2,1.0323]
[1729602542352,3.8175,2619.6,2619.2,1.0323]
[1729602542552,3.81764,2619.5,2619.2,1.0323]
[1729602542796,3.81767,2619.4,2619.2,1.0323]
[1729602543496,3.81753,2619.5,2619.0,3.73999541]
[1729602543689,3.81753,2619.5,2619.0,8.9520645]
[1729602544127,3.81748,2619.6,2619.0,12.7702245]
[1729602544422,3.81748,2619.6,2619.1,3.81807]
[1729602544742,3.81759,2619.5,2619.0,8.9519945]
[1729602546389,3.81759,2619.5,2619.1,0.07635529]
[1729602546931,3.81759,2619.5,2619.0,8.9519945]
[1729602548220,7.63524,2619.5,2619.0,8.9519945]
[1729602548840,3.89356509,2619.7,2619.1,0.07635531]
[1729602549043,3.81733,2619.7,2619.2,1.1018]
[1729602549344,1.09123509,2619.8,2619.2,1.1018]
[1729602549503,1.09123509,2619.8,2619.3,4.1120835]
[1729602549504,3.8171,2619.8,2619.3,4.1120835]
[1729602549704,3.81717,2619.8,2619.3,0.21793348]
[1729602550008,3.81717,2619.8,2619.4,0.07634395]
[1729602550204,3.81734,2619.7,2619.3,0.21793348]
[1729602550408,1.1131,2619.6,2619.3,0.21793348]
[1729602550617,4.93054,2619.6,2619.2,1.1018]
[1729602550917,3.81754,2619.5,2619.2,1.1018]
[1729602551116,7.63515,2619.5,2619.2,1.1018]
[1729602551467,3.81754,2619.5,2619.2,1.1018]
[1729602551845,7.63518,2619.5,2619.2,1.1018]
[1729602552064,3.81754,2619.5,2619.2,1.1018]
[1729602552222,3.8177,2619.4,2619.2,1.1018]
[1729602552427,7.63518,2619.5,2619.0,4.84629541]
[1729602552608,3.89377509,2619.5,2619.0,4.84629541]
[1729602552818,3.8177,2619.4,2619.0,4.84629541]
[1729602553017,3.8177,2619.4,2619.1,0.07635363]
[1729602553249,3.81754,2619.5,2619.1,0.07635363]
[1729602554050,3.81754,2619.5,2619.0,10.0629595]
[1729602554355,3.81777,2619.4,2619.0,4.84629541]
[1729602554527,3.81788,2619.3,2619.0,4.84629541]
[1729602554852,3.81797,2619.2,2619.0,4.84629541]
[1729602555064,3.8181,2619.1,2619.0,3.73999541]
[1729602555722,1.0737,2619.2,2619.0,7.73999541]
[1729602556075,3.8181,2619.1,2619.0,7.73999541]
[1729602556626,3.8181,2619.1,2619.0,3.73999541]
[1729602556974,4.76531109,2619.1,2619.0,3.73999541]
[1729602557319,9.2798662,2619.1,2619.0,0.01]
[1729602557555,12.20363111,2619.1,2619.0,0.01]
[1729602558059,15.63098622,2619.1,2619.0,0.01]
[1729602559558,7.91653,2618.6,2618.5,0.15346305]
[1729602559769,11.32388511,2618.6,2618.5,0.1306069]
[1729602560123,11.32388511,2618.6,2617.4,3.02785615]
[1729602560124,1.0977,2618.0,2617.4,3.02785615]
[1729602560325,4.91813,2617.5,2617.4,3.005]
[1729602560631,8.32548511,2617.5,2617.4,3.005]
[1729602560837,4.91813,2617.5,2617.4,3.005]
[1729602561250,8.32548511,2617.5,2617.4,3.005]
[1729602561451,9.19646111,2617.5,2617.4,3.005]
[1729602562763,4.44505511,2617.9,2617.4,3.005]
[1729602562971,3.89625509,2617.8,2617.4,3.005]
[1729602563180,0.07623509,2617.8,2617.4,3.005]
[1729602563381,3.89630509,2617.8,2617.4,3.005]
[1729602564275,3.82018,2617.7,2617.4,3.005]
[1729602564432,0.07623509,2617.6,2617.4,3.005]
[1729602565071,0.07623509,2617.7,2617.4,3.005]
[1729602565284,0.07623509,2617.8,2617.4,3.005]
[1729602565573,3.81951,2618.2,2617.6,3.82015]
[1729602565782,0.07623509,2618.2,2617.8,3.81992]
[1729602566153,0.07623509,2618.5,2618.1,3.81946]
[1729602566540,0.07623509,2618.5,2618.0,3.81969]
[1729602566736,3.81883,2618.6,2618.1,4.20908782]
[1729602566964,7.22589511,2618.8,2618.2,3.81931]
[1729602567150,0.07623509,2618.8,2618.4,3.81903]
[1729602567350,0.07623509,2618.8,2618.5,0.03583529]
[1729602567677,0.07623509,2618.7,2618.5,0.03583529]
[1729602567863,3.89484509,2618.8,2618.5,0.03583529]
[1729602568176,3.8187,2618.7,2618.6,0.03558022]
[1729602568477,3.81884,2618.6,2618.1,3.81954]
[1729602568832,3.81884,2618.6,2618.0,1.0568]
[1729602569036,3.89523509,2618.5,2618.0,4.87648]
[1729602569268,3.819,2618.5,2618.0,8.6961]
[1729602569448,3.819,2618.5,2618.0,4.87642]
[1729602570043,3.819,2618.5,2618.0,1.0568]
[1729602570044,3.89538509,2618.4,2618.0,1.0568]
[1729602570562,0.07623509,2618.4,2618.0,1.0568]
[1729602570777,3.819,2618.5,2618.0,1.0568]
[1729602571078,3.89523509,2618.5,2618.0,1.0568]
[1729602572442,3.89523509,2618.5,2618.0,4.8765]
[1729602572668,3.81856,2618.8,2618.3,3.81924]
[1729602572840,0.07623509,2618.7,2618.1,3.89584378]
[1729602573043,0.07623509,2618.7,2618.3,3.81924]
[1729602573245,0.07623509,2618.7,2618.3,3.81918]
[1729602573439,3.81856,2618.8,2618.3,3.81918]
[1729602573670,3.81856,2618.8,2618.4,3.81911]
[1729602573885,0.07623509,2618.8,2618.5,3.81896]
[1729602574089,3.89484509,2618.8,2618.2,3.81941]
[1729602574243,7.71348509,2618.8,2618.3,3.81924]
[1729602574441,3.89484509,2618.8,2618.3,3.81924]
[1729602575380,3.89457509,2619.0,2618.4,3.89538973]
[1729602575554,7.71293509,2619.0,2618.5,3.81898]
[1729602575885,7.71293509,2619.0,2618.4,3.81901]
[1729602575886,3.8184,2618.9,2618.4,3.81901]
[1729602576676,3.89457509,2619.0,2618.5,3.81897]
[1729602576884,7.71295509,2619.0,2618.5,3.81897]
[1729602577039,3.89457509,2619.0,2618.5,3.81897]
[1729602577369,3.02285615,2619.1,2618.5,3.81897]
[1729602577370,0.02285615,2619.1,2619.0,3.81825]
[1729602577545,1.0152,2620.1,2619.0,5.5122993]
[1729602577773,4.9367,2620.4,2619.7,3.81713]
[1729602577975,3.81644,2620.3,2619.7,3.81713]
[1729602578186,3.81659,2620.2,2619.7,3.81713]
[1729602578407,3.89273509,2620.2,2619.7,3.81713]
[1729602578610,3.8165,2620.2,2619.7,3.81713]
[1729602578809,3.81667,2620.1,2619.7,3.81713]
[1729602579118,7.63425,2619.8,2619.3,5.31953546]
[1729602579418,3.81709,2619.8,2619.3,5.31953546]
[1729602579913,7.63429,2619.8,2619.3,5.31953546]
[1729602580124,3.81709,2619.8,2619.3,5.31953546]